bitfinex-derivatives/quotes_SOLF0:USTF0_20240920
["timestamp","ask_amount","ask_price","bid_price","bid_amount"]
[1726841776147,26.3,146.06,145.96,3.4254]
[1726841776148,3.4246,146.0,145.96,3.4254]
[1726841776349,26.3,146.06,145.95,26.3]
[1726841776751,3.4248,145.99,145.95,29.7255]
[1726841777052,26.3,146.06,145.96,3.45254953]
[1726841777255,3.4248,145.99,145.96,3.45254953]
[1726841777550,3.4248,145.99,145.95,29.7255]
[1726841778347,26.3,146.06,145.95,29.67033782]
[1726841778550,26.3,146.09,145.97,26.3]
[1726841778748,26.3,146.09,146.0,3.4243]
[1726841779147,26.3,146.09,145.97,26.3]
[1726841779351,26.3,146.09,145.97,29.73963955]
[1726841779751,3.4244,146.01,145.97,6.86463955]
[1726841780057,26.3,146.06,145.97,3.43963955]
[1726841780249,26.3,146.06,145.95,26.3]
[1726841780455,26.3,146.06,145.96,6.79736206]
[1726841780655,26.3,146.06,145.96,3.37216206]
[1726841780852,3.4246,146.0,145.96,6.79736206]
[1726841781153,26.3,146.06,145.96,3.37216206]
[1726841781154,26.3,146.04,145.96,3.37216206]
[1726841781456,26.3,146.04,145.93,26.3]
[1726841781457,2.6945,146.03,145.93,26.3]
[1726841781648,3.4246,146.0,145.93,29.73176147]
[1726841782350,3.4246,146.0,145.96,3.4253]
[1726841783053,3.9979,146.03,145.95,26.3]
[1726841783845,2.6945,146.03,145.95,29.67103073]
[1726841784244,2.6945,146.03,145.99,3.4245]
[1726841784450,2.6945,146.03,145.95,29.67103073]
[1726841784652,3.424,146.02,145.99,3.4245]
[1726841785756,26.3,146.08,145.97,26.3]
[1726841785962,2.7502,146.08,145.99,26.3]
[1726841786263,2.7502,146.08,145.99,29.76717414]
[1726841786956,3.4236,146.04,146.01,3.4241]
[1726841787162,29.0502,146.08,145.99,3.46717414]
[1726841787362,29.0502,146.08,145.97,26.3]
[1726841787568,3.4237,146.03,146.0,3.4244]
[1726841788062,3.4236,146.04,146.01,3.4242]
[1726841788663,29.0502,146.08,145.97,29.8034868]
[1726841789262,3.4237,146.04,146.0,3.4244]
[1726841789856,29.0502,146.08,145.97,29.8034868]
[1726841790057,2.7502,146.08,145.99,26.3]
[1726841790368,3.4221,146.1,146.03,26.3]
[1726841790662,1.409,146.14,146.06,26.3]
[1726841790861,3.4207,146.16,146.08,26.3]
[1726841791055,2.7374,146.18,146.08,26.3]
[1726841791451,3.4208,146.16,146.12,3.4214]
[1726841791851,3.4209,146.15,146.11,3.4218]
[1726841792057,2.7374,146.18,146.11,3.4218]
[1726841792259,2.7374,146.18,146.08,29.69266155]
[1726841792455,26.3,146.15,145.98,137.0]
[1726841792664,1.4088,146.14,146.03,26.3]
[1726841792860,3.4222,146.1,146.06,3.4229]
[1726841793059,3.4222,146.1,146.03,29.67246714]
[1726841794668,1.4088,146.14,146.05,26.3]
[1726841794873,2.7374,146.18,146.07,26.3]
[1726841795071,2.7374,146.18,146.0,26.3]
[1726841795072,2.7374,146.18,146.14,3.421]
[1726841795375,2.7374,146.18,146.09,26.3]
[1726841795763,3.4206,146.17,146.13,3.4213]
[1726841795958,3.4206,146.17,146.14,3.44971318]
[1726841796275,3.4202,146.18,146.13,3.40590295]
[1726841796478,3.4202,146.18,146.12,26.3]
[1726841796670,1.3915,146.2,146.12,26.3]
[1726841796969,1.3915,146.2,146.12,29.7421833]
[1726841797278,3.4206,146.17,146.12,29.7421833]
[1726841797771,1.3915,146.2,146.12,29.7421833]
[1726841797961,3.4204,146.18,146.12,29.7421833]
[1726841798161,1.3915,146.2,146.12,29.7421833]
[1726841798373,3.4204,146.18,146.14,3.4211]
[1726841798571,3.4204,146.18,146.12,29.7421833]
[1726841799374,2.7929,146.25,146.14,26.3]
[1726841799584,2.7929,146.25,146.2,3.4197]
[1726841799767,2.7929,146.25,146.16,26.3]
[1726841800463,2.7929,146.25,146.16,29.63995753]
[1726841801475,26.3,146.3,146.18,26.3]
[1726841802264,3.4188,146.25,146.21,3.4195]
[1726841802571,4.0996,146.31,146.21,26.3]
[1726841802776,4.0996,146.31,146.23,26.3]
[1726841802979,3.4175,146.3,146.23,26.3]
[1726841803275,1.3253,146.31,146.23,26.3]
[1726841803478,4.7427,146.31,146.27,3.4181]
[1726841803978,1.3253,146.31,146.23,29.63515769]
[1726841804575,3.4178,146.29,146.25,3.4184]
[1726841804774,1.3253,146.31,146.23,29.63515769]
[1726841805288,3.4178,146.29,146.23,29.63515769]
[1726841805777,26.3,146.34,146.23,29.63515769]
[1726841805979,1.3674,146.36,146.23,29.63515769]
[1726841805980,2.7159,146.36,146.25,26.3]
[1726841806283,3.4172,146.31,146.28,3.4177]
[1726841806474,2.7159,146.36,146.25,26.3]
[1726841806680,2.7159,146.36,146.23,29.63515769]
[1726841806883,3.4177,146.29,146.26,3.4183]
[1726841808086,2.7159,146.36,146.23,29.63515769]
[1726841808284,2.7159,146.36,146.25,26.3]
[1726841808481,3.4176,146.3,146.23,29.63515769]
[1726841809282,26.3,146.34,146.23,29.63515769]
[1726841809885,26.3,146.34,146.24,3.4187]
[1726841810381,26.3,146.34,146.2,136.82]
[1726841810382,3.4195,146.22,146.2,136.82]
[1726841810584,3.4195,146.22,146.21,3.46860824]
[1726841810788,3.4195,146.22,146.2,136.82]
[1726841811277,3.4195,146.22,146.2,140.32347893]
[1726841811477,3.4195,146.21,146.2,136.82]
[1726841811891,4.1141,146.27,146.2,136.82]
[1726841812590,3.419,146.24,146.2,136.82]
[1726841812793,2.6898,146.27,146.2,136.82]
[1726841812986,3.4184,146.26,146.2,136.82]
[1726841813186,2.6898,146.27,146.2,140.2397]
[1726841813482,3.4193,146.22,146.2,136.82]
[1726841814085,2.6898,146.27,146.2,136.82]
[1726841814288,1.4167,146.26,146.2,136.82]
[1726841814493,1.4167,146.26,146.19,3.49261184]
[1726841814688,1.4167,146.26,146.16,26.3]
[1726841814992,27.7167,146.26,146.16,29.66001642]
[1726841815686,3.4198,146.2,146.16,29.66001642]
[1726841816289,3.4198,146.2,146.17,3.4204]
[1726841816493,3.4215,146.13,146.04,7.13883984]
[1726841816787,26.3,146.22,146.04,7.13883984]
[1726841816788,26.3,146.22,146.08,26.3]
[1726841816993,27.3679,146.24,146.08,26.3]
[1726841816994,3.4211,146.15,146.08,26.3]
[1726841817284,26.3,146.21,146.12,3.4215]
[1726841817590,26.3,146.21,146.12,6.80033141]
[1726841818391,26.3,146.21,146.12,3.37883141]
[1726841818593,26.3,146.21,146.1,26.3]
[1726841818787,3.4208,146.16,146.12,3.4214]
[1726841818990,3.4208,146.16,146.12,6.78246016]
[1726841819182,2.7191,146.2,146.12,3.36106016]
[1726841819491,2.7191,146.2,146.13,3.4214]
[1726841819690,2.7191,146.2,146.13,6.91694363]
[1726841819886,3.4206,146.17,146.13,3.4214]
[1726841820090,2.7191,146.2,146.1,26.3]
[1726841820487,3.4205,146.17,146.13,3.4212]
[1726841820684,3.4205,146.17,146.13,6.85993891]
[1726841820889,3.4205,146.17,146.13,3.4212]
[1726841821097,2.7191,146.2,146.13,3.42002617]
[1726841821297,27.7167,146.26,146.13,26.3]
[1726841821591,2.6999,146.25,146.13,29.67999185]
[1726841821799,3.4197,146.21,146.17,3.4203]
[1726841821987,2.6999,146.25,146.13,29.67999185]
[1726841822680,3.4201,146.19,146.15,3.4207]
[1726841822879,2.6999,146.25,146.13,29.67999185]
[1726841823293,2.6999,146.25,146.17,3.4203]
[1726841824396,3.4201,146.19,146.16,3.4207]
[1726841824702,26.3,146.21,146.13,3.37999185]
[1726841824991,9.5373,146.25,146.13,26.3]
[1726841824992,26.3,146.24,146.13,26.3]
[1726841825197,26.3,146.24,146.09,136.84]
[1726841825198,2.6999,146.25,146.15,26.3]
[1726841825499,2.6999,146.25,146.17,26.3]
[1726841825686,2.6999,146.25,146.17,29.69492496]
[1726841825887,2.6999,146.25,146.2,3.4195]
[1726841826184,2.6999,146.25,146.17,3.39492496]
[1726841826497,2.6999,146.25,146.18,3.4202]
[1726841826687,2.6999,146.25,146.18,6.84181086]
[1726841826893,2.6999,146.25,146.18,3.4202]
[1726841827091,2.6999,146.25,146.09,147.12239082]
[1726841827288,26.3,146.24,146.13,26.3]
[1726841827798,2.6999,146.25,146.15,26.3]
[1726841828091,2.6999,146.25,146.17,26.3]
[1726841828287,2.6999,146.25,146.17,29.65819989]
[1726841828689,4.011,146.3,146.19,26.3]
[1726841829193,3.4185,146.26,146.19,26.3]
[1726841829393,3.4185,146.26,146.19,29.67222517]
[1726841829995,3.4185,146.26,146.23,3.419]
[1726841830398,3.4186,146.25,146.22,3.4192]
[1726841830595,4.011,146.3,146.19,29.67222517]
[1726841830896,3.4187,146.25,146.22,3.4193]
[1726841831089,3.4187,146.25,146.19,29.67222517]
[1726841831293,4.011,146.3,146.19,29.67222517]
[1726841831500,3.4187,146.25,146.21,3.4194]
[1726841831695,4.011,146.3,146.21,3.4194]
[1726841831889,4.011,146.3,146.19,29.67222517]
[1726841832395,4.011,146.3,146.21,3.4195]
[1726841832795,3.4191,146.23,146.19,3.37222517]
[1726841833097,3.4191,146.23,146.18,136.82]
[1726841833295,26.3,146.28,146.18,136.82]
[1726841833607,26.3,146.28,146.2,3.4196]
[1726841833791,26.3,146.28,146.18,140.17978112]
[1726841834699,3.4192,146.23,146.18,140.17978112]
[1726841835085,3.4193,146.22,146.2,3.4197]
[1726841835286,3.4193,146.22,146.18,140.17978112]
[1726841835498,26.3,146.28,146.18,3.35978112]
[1726841835699,26.3,146.28,146.17,26.3]
[1726841835999,4.011,146.3,146.2,26.3]
[1726841836194,3.4186,146.26,146.2,26.3]
[1726841836392,4.011,146.3,146.22,26.3]
[1726841836596,4.011,146.3,146.22,29.67460664]
[1726841837193,4.011,146.3,146.22,3.37460664]
[1726841837393,26.3,146.28,146.17,26.3]
[1726841837599,26.3,146.28,146.17,29.7758168]
[1726841837795,26.3,146.28,146.2,3.4197]
[1726841838399,26.3,146.28,146.19,3.4199]
[1726841838604,26.3,146.28,146.17,29.7758168]
[1726841838891,26.3,146.28,146.2,3.4195]
[1726841839095,4.011,146.3,146.17,29.7758168]
[1726841839299,30.311,146.3,146.17,29.7758168]
[1726841839601,26.3,146.28,146.19,3.4199]
[1726841840198,26.3,146.28,146.2,3.4197]
[1726841840496,26.3,146.28,146.17,29.7758168]
[1726841840695,3.4191,146.23,146.2,3.4196]
[1726841841094,3.4185,146.26,146.2,26.3]
[1726841841292,30.311,146.3,146.2,26.3]
[1726841841695,3.4188,146.25,146.2,26.3]
[1726841841897,3.4188,146.25,146.22,3.4191]
[1726841842091,30.311,146.3,146.22,3.4191]
[1726841842400,3.4188,146.24,146.21,3.4194]
[1726841842609,30.311,146.3,146.2,26.3]
[1726841843406,30.311,146.3,146.23,3.4189]
[1726841843703,2.6681,146.3,146.2,26.3]
[1726841843898,3.4181,146.27,146.24,3.4188]
[1726841844105,2.6681,146.3,146.2,26.3]
[1726841844496,2.6681,146.3,146.23,3.4189]
[1726841844497,3.4185,146.26,146.23,3.4189]
[1726841844692,2.6681,146.3,146.23,3.4189]
[1726841844900,3.4184,146.26,146.23,3.4191]
[1726841845102,2.6681,146.3,146.2,26.3]
[1726841845599,1.2949,146.29,146.2,26.3]
[1726841846703,3.4187,146.25,146.2,26.3]
[1726841847002,3.4187,146.25,146.22,3.4192]
[1726841847189,3.419,146.24,146.2,26.3]
[1726841847597,6.8317,146.37,146.22,26.3]
[1726841847792,2.6372,146.36,146.26,26.3]
[1726841847996,2.6372,146.36,146.3,3.4174]
[1726841848303,1.2949,146.37,146.32,16.42]
[1726841848507,1.3464,146.39,146.33,16.42]
[1726841848702,16.42,146.43,146.35,16.42]
[1726841849002,4.0591,146.45,146.37,16.42]
[1726841849210,4.0591,146.45,146.39,16.42]
[1726841849411,19.78491108,146.51,146.41,16.42]
[1726841849601,16.42,146.51,146.41,16.42]
[1726841849802,3.43502051,146.52,146.41,3.40116279]
[1726841850119,26.23,146.49,146.37,26.23]
[1726841850313,3.4139,146.46,146.38,26.23]
[1726841850506,26.23,146.49,146.38,26.23]
[1726841850703,26.23,146.49,146.4,3.415]
[1726841850905,26.23,146.49,146.4,3.4799836]
[1726841851105,26.23,146.49,146.38,26.23]
[1726841851411,3.4141,146.45,146.39,3.4153]
[1726841851609,26.23,146.49,146.4,3.33139773]
[1726841851915,26.23,146.49,146.38,29.6748012]
[1726841852103,3.4142,146.44,146.38,33.0902012]
[1726841852300,3.4142,146.44,146.38,29.6748012]
[1726841852614,3.4142,146.44,146.38,33.0903012]
[1726841852813,26.23,146.49,146.38,33.0903012]
[1726841853013,26.23,146.47,146.38,3.4448012]
[1726841853314,3.4152,146.4,146.35,3.4162]
[1726841853612,3.4152,146.4,146.35,6.82720102]
[1726841853814,3.4152,146.4,146.35,3.41100102]
[1726841854111,3.4152,146.4,146.32,162.93]
[1726841854314,3.4152,146.4,146.35,26.23]
[1726841854515,3.4152,146.4,146.35,29.60171165]
[1726841854709,3.4153,146.39,146.35,29.60171165]
[1726841854914,4.103,146.46,146.35,29.60171165]
[1726841855115,4.103,146.46,146.37,3.4156]
[1726841855305,4.103,146.46,146.35,29.60171165]
[1726841856223,4.103,146.46,146.37,3.4156]
[1726841856418,26.23,146.43,146.26,219.62767824]
[1726841856712,26.23,146.43,146.29,26.23]
[1726841857112,26.23,146.38,146.27,162.91]
[1726841857318,2.8123,146.37,146.27,136.68]
[1726841857620,26.23,146.36,146.27,136.68]
[1726841857810,26.23,146.36,146.27,140.098]
[1726841858119,4.118,146.37,146.27,136.68]
[1726841859002,26.23,146.36,146.27,136.68]
[1726841860015,26.23,146.33,146.22,29.6491]
[1726841860223,3.4188,146.25,146.2,29.64347469]
[1726841860514,26.23,146.31,146.2,29.64347469]
[1726841860723,26.23,146.31,146.21,3.4193]
[1726841860909,26.23,146.31,146.2,29.64347469]
[1726841861313,3.4183,146.27,146.22,3.4193]
[1726841861511,26.23,146.26,146.18,136.7]
[1726841861709,2.6701,146.25,146.18,136.7]
[1726841861913,2.6701,146.25,146.18,140.1202]
[1726841862113,2.6701,146.25,146.18,136.7]
[1726841862613,6.0887,146.25,146.2,3.4197]
[1726841862813,2.6701,146.25,146.18,136.7]
[1726841863219,3.419,146.24,146.19,3.42]
[1726841863418,2.6701,146.25,146.18,136.7]
[1726841863923,3.4191,146.23,146.18,140.1201]
[1726841864123,2.6701,146.25,146.17,3.40421167]
[1726841864329,3.419,146.24,146.15,26.23]
[1726841864617,2.6701,146.25,146.15,29.5829452]
[1726841864821,3.4191,146.23,146.19,3.4198]
[1726841865525,3.4189,146.24,146.2,3.4197]
[1726841865717,2.6701,146.25,146.15,29.5829452]
[1726841866118,3.4191,146.23,146.19,3.4198]
[1726841866515,3.4191,146.23,146.15,29.5829452]
[1726841866926,2.6701,146.25,146.15,29.5829452]
[1726841867122,1.3511,146.25,146.17,26.23]
[1726841867420,1.3511,146.25,146.21,3.4194]
[1726841867923,3.419,146.24,146.2,6.77629551]
[1726841868125,1.3511,146.25,146.17,26.23]
[1726841868322,1.3511,146.25,146.17,3.46366995]
[1726841868518,3.4194,146.22,146.18,3.4202]
[1726841868718,3.4194,146.22,146.18,6.90781631]
[1726841869018,3.4194,146.22,146.18,3.4202]
[1726841869218,1.3511,146.25,146.19,3.41919813]
[1726841869419,1.3511,146.25,146.18,26.23]
[1726841870024,3.4192,146.23,146.2,3.4196]
[1726841871916,1.3511,146.25,146.19,3.45419378]
[1726841872226,1.3511,146.25,146.18,26.23]
[1726841872421,1.3511,146.25,146.22,3.4191]
[1726841872925,1.3769,146.26,146.22,3.4191]
[1726841873125,1.3769,146.26,146.21,3.45738131]
[1726841873327,1.3769,146.26,146.18,26.23]
[1726841873525,1.3769,146.26,146.22,3.4191]
[1726841873526,3.4186,146.25,146.22,3.4191]
[1726841873721,1.3769,146.26,146.21,3.4977425]
[1726841873926,1.3769,146.26,146.18,26.23]
[1726841874426,3.4188,146.24,146.21,3.4193]
[1726841874626,1.3769,146.26,146.18,3.41565193]
[1726841874925,1.3769,146.26,146.16,26.23]
[1726841875329,3.4192,146.23,146.2,3.4197]
[1726841875525,228.0,146.59,146.22,26.23]
[1726841875733,8.51774722,180.25,146.1,33.37157453]
[1726841875734,13.6412,146.61,146.58,52.46]
[1726841875921,6.843,146.74,146.6,78.69]
[1726841876122,6.843,146.88,146.73,26.23]
[1726841876423,6.843,146.88,146.68,26.23]
[1726841876626,2.73,146.89,146.68,26.23]
[1726841876627,1.0129146,146.73,146.68,26.23]
[1726841876827,1.0129146,146.73,146.61,26.23]
[1726841877026,6.843,146.83,146.68,19.38]
[1726841877219,1.0133643,146.82,146.68,12.53]
[1726841877619,1.0133643,146.82,146.73,3.4073]
[1726841877830,1.0133643,146.82,146.74,1.67537211]
[1726841878131,7.8563643,146.82,146.69,26.23]
[1726841878348,1.0,146.87,146.75,8.52369127]
[1726841878349,33.073,146.81,146.75,8.52369127]
[1726841878628,1.00544003,146.8,146.75,1.67369127]
[1726841878828,1.00544003,146.8,146.66,26.23]
[1726841879029,3.4063,146.78,146.67,3.4087]
[1726841879219,26.23,146.78,146.64,26.23]
[1726841879419,26.23,146.75,146.62,26.23]
[1726841879834,1.0055707,146.77,146.64,26.23]
[1726841880026,6.843,146.88,146.66,35.71]
[1726841880027,42.56,146.8,146.66,35.71]
[1726841880234,42.56,146.8,146.63,136.56]
[1726841880430,42.56,146.75,146.62,42.56]
[1726841880742,49.403,146.88,146.62,42.56]
[1726841881044,42.56,146.78,146.64,42.56]
[1726841881223,2.01132775,146.86,146.67,35.71]
[1726841881531,42.56,146.82,146.69,35.71]
[1726841881833,42.56,146.8,146.67,35.71]
[1726841882032,1.00566546,146.86,146.69,42.56]
[1726841882334,42.56,146.81,146.69,28.86]
[1726841882526,42.56,146.81,146.69,22.01]
[1726841882831,3.4065,146.77,146.69,15.16]
[1726841883132,42.56,146.79,146.66,42.56]
[1726841884640,42.56,146.77,146.64,42.56]
[1726841885136,42.56,146.79,146.67,42.56]
[1726841885842,41.84577659,146.79,146.67,42.56]
[1726841886337,3.4066,146.77,146.67,42.56]
[1726841886727,3.4068,146.76,146.69,3.4083]
[1726841886931,41.84577659,146.79,146.65,42.56]
[1726841887135,42.56,146.77,146.65,42.56]
[1726841887433,41.84577659,146.79,146.68,3.4085]
[1726841887625,41.84577659,146.79,146.65,42.56]
[1726841887825,41.84577659,146.79,146.66,3.409]
[1726841887826,3.4074,146.73,146.66,3.409]
[1726841888039,3.4074,146.73,146.65,42.56]
[1726841888345,3.4072,146.74,146.67,3.4088]
[1726841888637,3.4072,146.74,146.65,42.56]
[1726841888834,3.4069,146.76,146.65,42.56]
[1726841889036,41.84577659,146.79,146.67,42.56]
[1726841889634,3.4065,146.77,146.67,42.56]
[1726841889837,41.84577659,146.79,146.67,42.56]
[1726841890036,1.4027,146.84,146.67,42.56]
[1726841890234,42.56,146.77,146.67,42.56]
[1726841890434,42.56,146.79,146.67,42.56]
[1726841890639,3.4069,146.76,146.69,3.4081]
[1726841890935,42.56,146.79,146.67,42.56]
[1726841891144,3.4072,146.74,146.67,42.56]
[1726841891453,42.56,146.79,146.67,42.56]
[1726841891639,1.0,146.83,146.64,136.42]
[1726841891640,3.4064,146.78,146.69,42.56]
[1726841891940,42.56,146.78,146.67,42.56]
[1726841892535,42.56,146.81,146.69,42.56]
[1726841893238,42.56,146.81,146.7,3.408]
[1726841893440,1.4027,146.84,146.74,42.56]
[1726841893741,42.56,146.88,146.78,3.406]
[1726841894039,42.56,146.88,146.77,42.56]
[1726841894248,2.73,146.89,146.77,42.56]
[1726841894440,2.73,146.89,146.82,42.56]
[1726841894739,2.49293754,146.89,146.8,42.56]
[1726841895232,2.49293754,146.89,146.77,136.38]
[1726841895233,234.7994,147.07,146.85,42.56]
[1726841895435,42.56,146.99,146.87,42.56]
[1726841895836,1.3301,147.02,146.89,42.56]
[1726841896237,42.56,147.0,146.87,42.56]
[1726841896850,3.4028,146.94,146.87,3.4041]
[1726841897032,42.56,146.98,146.84,42.56]
[1726841897238,1.3301,147.02,146.84,42.56]
[1726841897543,42.56,146.99,146.87,42.56]
[1726841897945,3.4023,146.95,146.87,42.56]
[1726841898150,42.56,146.99,146.87,42.56]
[1726841898441,3.4014,146.99,146.93,3.4027]
[1726841898640,3.4014,146.99,146.91,42.56]
[1726841898831,4.36552728,148.0,146.94,42.56]
[1726841899037,3.4003,147.04,146.97,3.4018]
[1726841899352,42.56,147.11,146.96,42.56]
[1726841899841,42.56,147.08,146.96,42.56]
[1726841900044,3.4,147.05,146.96,42.56]
[1726841900233,42.56,147.1,146.99,42.56]
[1726841900634,3.3999,147.06,146.99,45.9613]
[1726841900838,42.56,147.1,146.99,42.56]
[1726841901132,43.9318,147.13,147.01,42.56]
[1726841901635,1.3718,147.13,147.01,42.56]
[1726841901843,42.56,147.1,146.99,42.56]
[1726841902954,42.56,147.1,146.87,42.56]
[1726841902955,42.56,147.08,146.91,136.2]
[1726841903144,42.56,147.05,146.94,42.56]
[1726841903338,42.56,147.05,146.91,42.56]
[1726841903638,42.56,147.05,146.94,42.56]
[1726841905149,42.56,147.03,146.91,42.56]
[1726841905336,3.4024,146.95,146.91,42.56]
[1726841905537,42.56,147.01,146.89,42.56]
[1726841906047,3.4027,146.94,146.89,42.56]
[1726841906253,41.98147904,147.01,146.89,42.56]
[1726841906546,3.4025,146.95,146.89,45.9636]
[1726841906768,20.0,147.02,146.93,42.56]
[1726841907050,23.4009,147.02,146.96,45.962]
[1726841907352,20.0,147.02,146.96,42.56]
[1726841908148,20.0,147.02,146.98,42.56]
[1726841909344,20.0,147.02,146.96,42.56]
[1726841909553,20.0,147.02,146.94,42.56]
[1726841909748,3.4015,146.99,146.94,42.56]
[1726841909956,20.0,147.02,146.94,42.56]
[1726841910146,20.0,147.02,146.91,42.56]
[1726841910854,3.4019,146.97,146.91,45.9631]
[1726841911151,20.0,147.02,146.94,42.56]
[1726841911554,20.0,147.02,146.91,42.56]
[1726841911746,62.56,147.02,146.91,42.56]
[1726841911952,3.4022,146.96,146.91,42.56]
[1726841912148,62.56,147.02,146.89,42.56]
[1726841912350,3.4025,146.95,146.89,42.56]
[1726841912557,62.56,147.02,146.89,42.56]
[1726841912758,62.56,147.02,146.92,42.56]
[1726841913150,20.0,147.02,146.92,42.56]
[1726841913347,3.4015,146.99,146.93,3.4027]
[1726841913555,3.4015,146.99,146.92,42.56]
[1726841913556,20.0,147.02,146.92,42.56]
[1726841913862,3.4015,146.99,146.93,3.4026]
[1726841914047,20.0,147.02,146.93,3.4026]
[1726841914248,20.0,147.02,146.92,42.56]
[1726841914449,3.4014,146.99,146.93,3.4026]
[1726841914651,3.4014,146.99,146.92,42.56]
[1726841914852,20.0,147.02,146.92,42.56]
[1726841915051,62.56,147.02,146.9,3.4034]
[1726841915252,62.56,147.02,146.89,42.56]
[1726841915448,3.4028,146.93,146.89,42.56]
[1726841915964,3.4026,146.94,146.89,45.9636]
[1726841916156,62.56,147.0,146.89,42.56]
[1726841916362,20.0,147.0,146.89,42.56]
[1726841916862,62.56,147.0,146.89,42.56]
[1726841917960,62.56,147.0,146.84,136.16]
[1726841917961,42.56,146.97,146.84,42.56]
[1726841918167,42.56,146.93,146.81,42.56]
[1726841918659,42.56,146.9,146.79,42.56]
[1726841919360,42.56,146.93,146.79,42.56]
[1726841919754,6.8036,146.98,146.81,42.56]
[1726841919755,42.56,146.95,146.81,42.56]
[1726841919957,42.56,146.95,146.8,42.56]
[1726841920152,42.56,146.9,146.77,42.56]
[1726841920554,3.4055,146.82,146.77,45.9664]
[1726841920957,2.7889,146.89,146.77,42.56]
[1726841922474,3.405,146.84,146.79,3.406]
[1726841922661,2.7889,146.89,146.77,42.56]
[1726841923564,3.4046,146.86,146.81,3.4053]
[1726841923870,3.4046,146.86,146.74,136.12]
[1726841923871,2.7889,146.89,146.78,42.56]
[1726841924065,3.4045,146.86,146.81,3.4055]
[1726841924266,2.7889,146.89,146.78,42.56]
[1726841924566,2.3147573,146.89,146.78,42.56]
[1726841924772,3.4047,146.85,146.8,3.4056]
[1726841925065,2.3147573,146.89,146.78,42.56]
[1726841925361,3.4052,146.83,146.78,42.56]
[1726841925771,3.4049,146.84,146.79,3.4059]
[1726841925960,2.93629803,146.84,146.79,3.4059]
[1726841926160,2.3147573,146.89,146.78,42.56]
[1726841926361,3.4051,146.84,146.79,3.4059]
[1726841926564,2.3147573,146.89,146.83,42.56]
[1726841926870,1.3901,146.93,146.85,42.56]
[1726841927874,20.0,146.95,146.85,42.56]
[1726841929166,20.0,146.95,146.85,45.9646]
[1726841929363,20.0,146.95,146.85,42.56]
[1726841929563,3.403,146.92,146.87,3.4041]
[1726841929767,20.0,146.95,146.85,42.56]
[1726841930174,3.4029,146.93,146.87,42.56]
[1726841930475,20.0,146.95,146.9,42.56]
[1726841931074,20.0,146.95,146.92,42.56]
[1726841931666,23.4025,146.95,146.92,42.56]
[1726841931879,20.0,146.95,146.92,42.56]
[1726841932175,20.0,146.95,146.94,3.4025]
[1726841932685,20.0,146.95,146.9,45.9633]
[1726841932882,20.0,146.95,146.9,42.56]
[1726841933074,20.0,146.95,146.92,42.56]
[1726841933075,19.3022,146.95,146.92,42.56]
[1726841933277,19.3022,146.95,146.94,45.9625]